fUSD/lending_fUSD_20240319
["ID","MTS","AMOUNT","RATE_DAILY","PERIOD"]
[319579739,1710881445407,-500.0,0.00030136,2]
[319579740,1710881445417,-500.0,0.00030136,2]
[319579741,1710881445427,-538.3,0.00030136,2]
[319579742,1710881445438,-500.0,0.00030136,2]
[319579743,1710881445448,-500.0,0.00030136,2]
[319579744,1710881445458,-1359.53,0.00030136,2]
[319579745,1710881445467,-533.59,0.00030136,2]
[319579746,1710881445476,-509.6624003,0.00030136,2]
[319579747,1710881445486,-632.67,0.00030136,2]
[319579748,1710881445495,-500.0,0.00030136,2]
[319579749,1710881445504,-500.0,0.00030136,2]
[319579750,1710881445514,-500.0,0.00030136,2]
[319579751,1710881445524,-500.0,0.00030136,2]
[319579752,1710881445533,-596.5,0.00030136,2]
[319579753,1710881445543,-2293.89,0.00030136,2]
[319579754,1710881445552,-500.0,0.00030136,2]
[319579755,1710881445561,-500.0,0.00030136,2]
[319579756,1710881445571,-551.82,0.00030136,2]
[319579757,1710881445580,-500.0,0.00030136,2]
[319579758,1710881445589,-1781.31,0.00030136,2]
[319579759,1710881445599,-500.0,0.00030136,2]
[319579760,1710881445609,-1349.05,0.00030136,2]
[319579761,1710881445619,-500.0,0.00030136,2]
[319579762,1710881445628,-500.0,0.00030136,2]
[319579763,1710881445638,-500.0,0.00030136,2]
[319579764,1710881445647,-614.2407864,0.00030136,2]
[319579765,1710881445656,-500.0,0.00030136,2]
[319579766,1710881445667,-865.23,0.00030136,2]
[319579767,1710881445676,-960.66,0.00030136,2]
[319579768,1710881445686,-500.0,0.00030136,2]
[319579769,1710881445695,-579.37,0.00030136,2]
[319579770,1710881445705,-500.0,0.00030136,2]
[319579771,1710881445714,-500.0,0.00030136,2]
[319579772,1710881445724,-500.0,0.00030136,2]
[319579773,1710881445734,-500.0,0.00030136,2]
[319579774,1710881445743,-500.0,0.00030136,2]
[319579775,1710881445752,-151.0,0.00030136,7]
[319579776,1710881445762,-151.0,0.00030136,7]
[319579777,1710881445772,-151.0,0.00030136,7]
[319579778,1710881445782,-151.0,0.00030136,7]
[319579779,1710881445792,-500.0,0.00030136,2]
[319579780,1710881445803,-500.0,0.00030136,2]
[319579781,1710881445812,-500.0,0.00030136,2]
[319579782,1710881445823,-1135.9,0.00030136,2]
[319579783,1710881445833,-500.0,0.00030136,2]
[319579784,1710881445844,-151.0,0.00030136,7]
[319579785,1710881445854,-151.0,0.00030136,7]
[319579787,1710881445864,-151.0,0.00030136,7]
[319579789,1710881445873,-500.0,0.00030136,2]
[319579791,1710881445883,-180.54951,0.00030136,7]
[319579793,1710881445892,-919.11,0.00030136,2]
[319579795,1710881445902,-500.0,0.00030136,2]
[319579797,1710881445911,-911.21,0.00030136,2]
[319579798,1710881445923,-500.0,0.00030136,2]
[319579799,1710881445935,-1722.34,0.00030136,2]
[319579800,1710881445945,-1526.82,0.00030136,2]
[319579801,1710881445956,-1209.54,0.00030136,2]
[319579802,1710881445966,-1643.85,0.00030136,2]
[319579803,1710881445976,-500.0,0.00030136,2]
[319579804,1710881445986,-500.0,0.00030136,2]
[319579805,1710881445997,-716.74,0.00030136,2]
[319579806,1710881446009,-595.59,0.00030136,2]
[319579807,1710881446018,-500.0,0.00030136,2]
[319579808,1710881446028,-500.0,0.00030136,2]
[319579809,1710881446037,-2536.15,0.00030136,2]
[319579810,1710881446047,-663.6,0.00030136,2]
[319579811,1710881446057,-456.25,0.00030136,2]
[319579812,1710881446067,-609.89,0.00030136,2]
[319579813,1710881446076,-500.0,0.00030136,2]
[319579814,1710881446086,-500.0,0.00030136,2]
[319579815,1710881446096,-1277.24,0.00030136,2]
[319579816,1710881446106,-1074.93,0.00030136,2]
[319579817,1710881446116,-500.0,0.00030136,2]
[319579818,1710881446125,-752.19,0.00030136,2]
[319579819,1710881446134,-760.28,0.00030136,2]
[319579820,1710881446144,-500.0,0.00030136,2]
[319579821,1710881446154,-821.77,0.00030136,2]
[319579822,1710881446163,-645.14,0.00030136,2]
[319579823,1710881446178,-500.0,0.00030136,2]
[319579824,1710881446188,-500.0,0.00030136,2]
[319579825,1710881446197,-660.35,0.00030136,2]
[319579826,1710881446206,-500.0,0.00030136,2]
[319579827,1710881446216,-2029.78,0.00030136,2]
[319579828,1710881446225,-1161.82,0.00030136,2]
[319579829,1710881446234,-500.0,0.00030136,2]
[319579830,1710881446243,-500.0,0.00030136,2]
[319579831,1710881446253,-179.307203,0.00030136,7]
[319579832,1710881446264,-596.65,0.00030136,2]
[319579833,1710881446273,-179.307203,0.00030136,7]
[319579834,1710881446283,-2032.98,0.00030136,2]
[319579835,1710881446293,-179.307203,0.00030136,7]
[319579836,1710881446303,-500.0,0.00030136,2]
[319579837,1710881446312,-179.307203,0.00030136,7]
[319579838,1710881446322,-500.0,0.00030136,2]
[319579839,1710881446331,-179.307203,0.00030136,7]
[319579840,1710881446340,-978.26,0.00030136,2]
[319579841,1710881446349,-179.307203,0.00030136,7]
[319579842,1710881446359,-179.307203,0.00030136,7]
[319579843,1710881446368,-179.307203,0.00030136,7]
[319579844,1710881446376,-179.307203,0.00030136,7]
[319579845,1710881446386,-179.307203,0.00030136,7]
[319579846,1710881446395,-202.03,0.00030136,2]
[319579847,1710881446404,-832.59,0.00030136,2]
[319579848,1710881446422,-1231.32,0.00030136,2]
[319579849,1710881446431,-737.73,0.00030136,2]
[319579850,1710881446441,-500.0,0.00030136,2]
[319579851,1710881446451,-1610.5,0.00030136,2]
[319579852,1710881446461,-893.71,0.00030136,2]
[319579853,1710881446470,-885.8,0.00030136,2]
[319579854,1710881446479,-1831.61,0.00030136,2]
[319579855,1710881446489,-500.0,0.00030136,2]
[319579856,1710881446500,-500.0,0.00030136,2]
[319579857,1710881446510,-3289.9,0.00030136,2]
[319579858,1710881446519,-500.0,0.00030136,2]
[319579859,1710881446529,-929.57,0.00030136,2]
[319579860,1710881446538,-500.0,0.00030136,2]
[319579861,1710881446547,-627.19668936,0.00030136,2]
[319579862,1710881446557,-500.0,0.00030136,2]
[319579863,1710881446566,-501.44786807,0.00030136,2]
[319579864,1710881446576,-400.18101878,0.00030136,2]
[319579865,1710881446585,-500.0,0.00030136,2]
[319579866,1710881446595,-500.0,0.00030136,2]
[319579868,1710881446605,-500.0,0.00030136,2]
[319579870,1710881446615,-1737.11,0.00030136,2]
[319579872,1710881446624,-672.07,0.00030136,2]
[319579874,1710881446634,-1482.05,0.00030136,2]
[319579876,1710881446644,-1178.56,0.00030136,2]
[319579878,1710881446654,-500.0,0.00030136,2]
[319579880,1710881446664,-700.52,0.00030136,2]
[319579882,1710881446678,-500.0,0.00030136,2]
[319579884,1710881446687,-500.0,0.00030136,2]
[319579886,1710881446697,-500.0,0.00030136,2]
[319579889,1710881446707,-151.0,0.00030136,7]
[319579891,1710881446717,-151.0,0.00030136,7]
[319579893,1710881446727,-1760.25,0.00030136,2]
[319579895,1710881446736,-151.0,0.00030136,7]
[319579897,1710881446745,-151.0,0.00030136,7]
[319579899,1710881446754,-151.0,0.00030136,7]
[319579900,1710881446765,-500.0,0.00030136,2]
[319579902,1710881446774,-151.0,0.00030136,7]
[319579904,1710881446783,-500.0,0.00030136,2]
[319579906,1710881446793,-1117.48,0.00030136,2]
[319579908,1710881446802,-500.0,0.00030136,2]
[319579910,1710881446811,-500.0,0.00030136,2]
[319579912,1710881446820,-500.0,0.00030136,2]
[319579914,1710881446829,-500.0,0.00030136,2]
[319579916,1710881446839,-500.0,0.00030136,2]
[319579918,1710881446848,-675.84,0.00030136,2]
[319579920,1710881446857,-500.0,0.00030136,2]
[319579922,1710881446867,-500.0,0.00030136,2]
[319579924,1710881446876,-500.0,0.00030136,2]
[319579926,1710881446885,-1841.76,0.00030136,2]
[319579928,1710881446893,-500.0,0.00030136,2]
[319579930,1710881446902,-500.0,0.00030136,2]
[319579932,1710881446911,-517.4,0.00030136,2]
[319579934,1710881446922,-2580.8,0.00030136,2]
[319579936,1710881446931,-500.0,0.00030136,2]
[319579938,1710881446940,-617.63,0.00030136,2]
[319579940,1710881446948,-500.0,0.00030136,2]
[319579942,1710881446957,-500.0,0.00030136,2]
[319579944,1710881446967,-1044.02,0.00030136,2]
[319579945,1710881446976,-3057.51,0.00030136,2]
[319579947,1710881446984,-500.0,0.00030136,2]
[319579949,1710881446993,-500.0,0.00030136,2]
[319579951,1710881447002,-500.0,0.00030136,2]
[319579952,1710881447011,-1550.65,0.00030136,2]
[319579953,1710881447020,-763.21,0.00030136,2]
[319579954,1710881447029,-2323.69,0.00030136,2]
[319579956,1710881447038,-1459.18,0.00030136,2]
[319579958,1710881447051,-5271.88,0.00030136,2]
[319579960,1710881447060,-500.0,0.00030136,2]
[319579962,1710881447070,-500.0,0.00030136,2]
[319579964,1710881447079,-461.8968329,0.00030136,2]
[319579966,1710881447088,-500.0,0.00030136,2]
[319579968,1710881447097,-500.0,0.00030136,2]
[319579970,1710881447106,-500.0,0.00030136,2]
[319579972,1710881447115,-1235.28,0.00030136,2]
[319579974,1710881447124,-1245.93,0.00030136,2]
[319579976,1710881447133,-2172.16,0.00030136,2]
[319579978,1710881447142,-990.18,0.00030136,2]
[319579980,1710881447151,-611.08,0.00030136,2]
[319579982,1710881447161,-552.15,0.00030136,2]
[319579984,1710881447175,-531.32,0.00030136,2]
[319579986,1710881447185,-500.0,0.00030136,2]
[319579988,1710881447195,-588.011817,0.00030136,7]
[319579990,1710881447205,-588.011817,0.00030136,7]
[319579992,1710881447215,-588.011817,0.00030136,7]
[319579994,1710881447227,-588.011817,0.00030136,7]
[319579996,1710881447237,-588.011817,0.00030136,7]
[319579998,1710881447246,-500.0,0.00030136,2]
[319579999,1710881447254,-588.011817,0.00030136,7]
[319580000,1710881447264,-588.011817,0.00030136,7]
[319580001,1710881447273,-588.011817,0.00030136,7]
[319580002,1710881447283,-588.011817,0.00030136,7]
[319580003,1710881447292,-588.011817,0.00030136,7]
[319580004,1710881447301,-1179.83,0.00030136,2]
[319580005,1710881447310,-500.0,0.00030136,2]
[319580006,1710881447320,-500.0,0.00030136,2]
[319580007,1710881447329,-1154.96,0.00030136,2]
[319580008,1710881447338,-1895.55,0.00030136,2]
[319580009,1710881447348,-817.04,0.00030136,2]
[319580010,1710881447357,-170.51240349,0.00030136,2]
[319580011,1710881447366,-500.0,0.00030136,2]
[319580012,1710881447375,-3374.01,0.00030136,2]
[319580013,1710881447385,-486.21458365,0.00030136,2]
[319580014,1710881447394,-500.0,0.00030136,2]
[319580015,1710881447404,-983.51,0.00030136,2]
[319580016,1710881447414,-500.0,0.00030136,2]
[319580017,1710881447426,-500.0,0.00030136,2]
[319580018,1710881447439,-1015.51,0.00030136,2]
[319580019,1710881447448,-500.0,0.00030136,2]
[319580020,1710881447457,-4859.77,0.00030136,2]
[319580021,1710881447466,-500.0,0.00030136,2]
[319580022,1710881447476,-151.181537,0.00030136,7]
[319580023,1710881447485,-151.0,0.00030136,7]
[319580024,1710881447494,-151.0,0.00030136,7]
[319580025,1710881447504,-151.0,0.00030136,7]
[319580026,1710881447514,-880.13,0.00030136,2]
[319580027,1710881447523,-151.0,0.00030136,7]
[319580028,1710881447533,-151.0,0.00030136,7]
[319580029,1710881447542,-2751.56,0.00030136,2]
[319580030,1710881447551,-630.85,0.00030136,2]
[319580031,1710881447560,-572.27,0.00030136,2]
[319580032,1710881447569,-1786.16,0.00030136,2]
[319580033,1710881447579,-500.0,0.00030136,2]
[319580034,1710881447588,-558.47,0.00030136,2]
[319580035,1710881447598,-1088.13,0.00030136,2]
[319580036,1710881447607,-500.0,0.00030136,2]
[319580037,1710881447617,-502.29529162,0.00030136,2]
[319580038,1710881447626,-1584.4,0.00030136,2]
[319580039,1710881447635,-2427.19,0.00030136,2]
[319580040,1710881447645,-1100.44,0.00030136,2]
[319580041,1710881447654,-500.0,0.00030136,2]
[319580042,1710881447663,-879.5,0.00030136,2]
[319580043,1710881447676,-500.0,0.00030136,2]
[319580044,1710881447685,-500.0,0.00030136,2]
[319580045,1710881447694,-500.0,0.00030136,2]
[319580046,1710881447704,-865.88,0.00030136,2]
[319580047,1710881447714,-500.0,0.00030136,2]
[319580048,1710881447724,-764.77,0.00030136,2]
[319580049,1710881447733,-1762.31,0.00030136,2]
[319580050,1710881447742,-500.0,0.00030136,2]
[319580051,1710881447752,-500.0,0.00030136,2]
[319580052,1710881447761,-500.0,0.00030136,2]
[319580053,1710881447771,-500.0,0.00030136,2]
[319580054,1710881447780,-500.0,0.00030136,2]
[319580055,1710881447790,-2232.06,0.00030136,2]
[319580056,1710881447799,-500.0,0.00030136,2]
[319580057,1710881447809,-1259.79,0.00030136,2]
[319580058,1710881447818,-151.0,0.00030136,7]
[319580059,1710881447827,-852.94,0.00030136,2]
[319580060,1710881447836,-151.718146,0.00030136,7]
[319580061,1710881447846,-1721.71,0.00030136,2]
[319580062,1710881447855,-500.0,0.00030136,2]
[319580063,1710881447864,-500.0,0.00030136,2]
[319580064,1710881447875,-506.63674631,0.00030136,2]
[319580065,1710881447884,-535.95,0.00030136,2]
[319580066,1710881447893,-2327.27,0.00030136,2]
[319580067,1710881447902,-2889.04,0.00030136,2]
[319580068,1710881447912,-1051.21,0.00030136,2]
[319580069,1710881447923,-1487.08,0.00030136,2]
[319580070,1710881447933,-1028.7,0.00030136,2]
[319580071,1710881447942,-500.0,0.00030136,2]
[319580072,1710881447952,-500.0,0.00030136,2]
[319580073,1710881447961,-500.0,0.00030136,2]
[319580074,1710881447970,-500.0,0.00030136,2]
[319580075,1710881447979,-500.0,0.00030136,2]
[319580076,1710881447988,-573.525003,0.00030136,7]
[319580077,1710881447998,-573.525003,0.00030136,7]
[319580078,1710881448008,-573.525003,0.00030136,7]
[319580079,1710881448018,-573.525003,0.00030136,7]
[319580080,1710881448028,-573.525003,0.00030136,7]
[319580081,1710881448039,-182.76894295,0.00030136,2]
[319580082,1710881448049,-337.20126,0.00030136,7]
[319580083,1710881448058,-500.0,0.00030136,2]
[319580084,1710881448068,-337.20126,0.00030136,7]
[319580085,1710881448078,-337.20126,0.00030136,7]
[319580086,1710881448087,-500.0,0.00030136,2]
[319580087,1710881448096,-640.88,0.00030136,2]
[319580088,1710881448105,-573.525003,0.00030136,7]
[319580089,1710881448114,-337.20126,0.00030136,7]
[319580090,1710881448123,-1293.89,0.00030136,2]
[319580091,1710881448132,-337.20126,0.00030136,7]
[319580092,1710881448141,-573.525003,0.00030136,7]
[319580093,1710881448150,-500.0,0.00030136,2]
[319580094,1710881448159,-573.525003,0.00030136,7]
[319580095,1710881448168,-573.525003,0.00030136,7]
[319580096,1710881448178,-573.525003,0.00030136,7]
[319580097,1710881448187,-1317.37,0.00030136,2]
[319580098,1710881448196,-1305.42,0.00030136,2]
[319580099,1710881448206,-337.20126,0.00030136,7]
[319580100,1710881448215,-500.0,0.00030136,2]
[319580101,1710881448224,-337.20126,0.00030136,7]
[319580102,1710881448233,-598.73,0.00030136,2]
[319580103,1710881448243,-337.20126,0.00030136,7]
[319580104,1710881448252,-337.20126,0.00030136,7]
[319580105,1710881448261,-337.20126,0.00030136,7]
[319580106,1710881448270,-1410.04,0.00030136,2]
[319580107,1710881448279,-978.62,0.00030136,2]
[319580108,1710881448289,-500.0,0.00030136,2]
[319580109,1710881448298,-500.0,0.00030136,2]
[319580110,1710881448307,-500.0,0.00030136,2]
[319580111,1710881448316,-605.33820287,0.00030136,2]
[319580112,1710881448326,-292.58982088,0.00030136,2]
[319580113,1710881448335,-500.0,0.00030136,2]
[319580114,1710881448344,-1338.19,0.00030136,2]
[319580115,1710881448353,-500.0,0.00030136,2]
[319580116,1710881448362,-1507.1,0.00030136,2]
[319580117,1710881448371,-1303.65,0.00030136,2]
[319580118,1710881448381,-500.0,0.00030136,2]
[319580119,1710881448390,-2195.62,0.00030136,2]
[319580120,1710881448399,-500.0,0.00030136,2]
[319580121,1710881448410,-529.33787608,0.00030136,2]
[319580122,1710881448422,-5313.16,0.00030136,2]
[319580123,1710881448432,-500.0,0.00030136,2]
[319580124,1710881448441,-500.0,0.00030136,2]
[319580125,1710881448451,-500.0,0.00030136,2]
[319580126,1710881448460,-500.0,0.00030136,2]
[319580127,1710881448470,-678.26,0.00030136,2]
[319580128,1710881448479,-381.091523,0.00030136,7]
[319580129,1710881448488,-381.091523,0.00030136,7]
[319580130,1710881448499,-500.0,0.00030136,2]
[319580131,1710881448509,-500.0,0.00030136,2]
[319580132,1710881448519,-500.0,0.00030136,2]
[319580133,1710881448528,-500.0,0.00030136,2]
[319580134,1710881448538,-500.0,0.00030136,2]
[319580135,1710881448785,-500.0,0.00030136,2]
[319580136,1710881448796,-381.091523,0.00030136,7]
[319580137,1710881448805,-1847.69,0.00030136,2]
[319580138,1710881448814,-1849.78,0.00030136,2]
[319580139,1710881448824,-381.091523,0.00030136,7]
[319580140,1710881448834,-546.017675,0.00030136,7]
[319580141,1710881448844,-381.091523,0.00030136,7]
[319580142,1710881448854,-546.017675,0.00030136,7]
[319580143,1710881448863,-546.017675,0.00030136,7]
[319580144,1710881448872,-500.0,0.00030136,2]
[319580145,1710881448881,-546.017675,0.00030136,7]
[319580146,1710881448890,-1435.23,0.00030136,2]
[319580147,1710881448900,-546.017675,0.00030136,7]
[319580148,1710881448909,-381.091523,0.00030136,7]
[319580149,1710881448918,-1671.55,0.00030136,2]
[319580150,1710881448928,-381.091523,0.00030136,7]
[319580151,1710881448937,-500.0,0.00030136,2]
[319580152,1710881448946,-381.091523,0.00030136,7]
[319580153,1710881448955,-381.091523,0.00030136,7]
[319580154,1710881448964,-546.017675,0.00030136,7]
[319580155,1710881448973,-381.091523,0.00030136,7]
[319580156,1710881448982,-546.017675,0.00030136,7]
[319580157,1710881448991,-546.017675,0.00030136,7]
[319580158,1710881449000,-1398.353827,0.00030136,7]
[319580159,1710881449010,-1398.353827,0.00030136,7]
[319580160,1710881449019,-500.0,0.00030136,2]
[319580161,1710881449028,-1398.353827,0.00030136,7]
[319580162,1710881449038,-1213.03,0.00030136,2]
[319580163,1710881449047,-546.017675,0.00030136,7]
[319580164,1710881449057,-1398.353827,0.00030136,7]
[319580165,1710881449066,-546.017675,0.00030136,7]
[319580166,1710881449075,-500.0,0.00030136,2]
[319580167,1710881449084,-1398.353827,0.00030136,7]
[319580168,1710881449093,-500.0,0.00030136,2]
[319580169,1710881449102,-151.219886,0.00030136,7]
[319580170,1710881449112,-500.0,0.00030136,2]
[319580171,1710881449122,-1828.28,0.00030136,2]
[319580172,1710881449131,-1398.353827,0.00030136,7]
[319580173,1710881449140,-500.0,0.00030136,2]
[319580174,1710881449149,-151.0,0.00030136,7]
[319580175,1710881449159,-151.0,0.00030136,7]
[319580176,1710881449168,-1398.353827,0.00030136,7]
[319580177,1710881449177,-957.5,0.00030136,2]
[319580178,1710881449187,-618.66,0.00030136,2]
[319580179,1710881449196,-1398.353827,0.00030136,7]
[319580180,1710881449206,-1398.353827,0.00030136,7]
[319580181,1710881449215,-216.168263,0.00030136,7]
[319580182,1710881449223,-1200.49,0.00030136,2]
[319580183,1710881449233,-1398.353827,0.00030136,7]
[319580184,1710881449242,-1417.25,0.00030136,2]
[319580185,1710881449251,-1629.35,0.00030136,2]
[319580186,1710881449261,-500.0,0.00030136,2]
[319580187,1710881449270,-536.98,0.00030136,2]
[319580188,1710881449280,-151.0,0.00030136,7]
[319580189,1710881449289,-151.0,0.00030136,7]
[319580190,1710881449298,-500.0,0.00030136,2]
[319580191,1710881449307,-151.0,0.00030136,7]
[319580192,1710881449317,-1387.22,0.00030136,2]
[319580193,1710881449326,-500.0,0.00030136,2]
[319580194,1710881449335,-500.0,0.00030136,2]
[319580195,1710881449345,-500.0,0.00030136,2]
[319580196,1710881449354,-500.0,0.00030136,2]
[319580197,1710881449364,-500.0,0.00030136,2]
[319580198,1710881449373,-825.88,0.00030136,2]
[319580199,1710881449382,-307.34428,0.00030136,7]
[319580200,1710881449391,-307.34428,0.00030136,7]
[319580201,1710881449400,-738.24,0.00030136,2]
[319580202,1710881449410,-307.34428,0.00030136,7]
[319580203,1710881449421,-801.97,0.00030136,2]
[319580204,1710881449431,-1721.78,0.00030136,2]
[319580205,1710881449442,-307.34428,0.00030136,7]
[319580206,1710881449451,-307.34428,0.00030136,7]
[319580207,1710881449460,-307.34428,0.00030136,7]
[319580208,1710881449470,-500.0,0.00030136,2]
[319580209,1710881449480,-151.0,0.00030136,7]
[319580210,1710881449489,-152.452715,0.00030136,7]
[319580211,1710881449498,-599.66158,0.00030136,7]
[319580212,1710881449508,-307.34428,0.00030136,7]
[319580213,1710881449518,-599.66158,0.00030136,7]
[319580214,1710881449528,-500.0,0.00030136,2]
[319580215,1710881449538,-307.34428,0.00030136,7]
[319580216,1710881449548,-307.34428,0.00030136,7]
[319580217,1710881449557,-599.66158,0.00030136,7]
[319580218,1710881449566,-307.34428,0.00030136,7]
[319580219,1710881449575,-599.66158,0.00030136,7]
[319580220,1710881449585,-307.34428,0.00030136,7]
[319580221,1710881449594,-599.66158,0.00030136,7]
[319580222,1710881449603,-307.34428,0.00030136,7]
[319580223,1710881449613,-500.0,0.00030136,2]
[319580224,1710881449623,-599.66158,0.00030136,7]
[319580225,1710881449632,-1865.79,0.00030136,2]
[319580226,1710881449641,-1625.32,0.00030136,2]
[319580227,1710881449650,-500.0,0.00030136,2]
[319580228,1710881449660,-500.0,0.00030136,2]
[319580229,1710881449671,-599.66158,0.00030136,7]
[319580230,1710881449680,-500.0,0.00030136,2]
[319580231,1710881449689,-599.66158,0.00030136,7]
[319580232,1710881449699,-500.0,0.00030136,2]
[319580233,1710881449708,-599.66158,0.00030136,7]
[319580234,1710881449717,-500.0,0.00030136,2]
[319580235,1710881449727,-500.0,0.00030136,2]
[319580236,1710881449736,-599.66158,0.00030136,7]
[319580237,1710881449745,-599.66158,0.00030136,7]
[319580238,1710881449754,-500.0,0.00030136,2]
[319580239,1710881449764,-599.66158,0.00030136,7]
[319580240,1710881449773,-500.0,0.00030136,2]
[319580241,1710881449783,-500.0,0.00030136,2]
[319580242,1710881449793,-500.0,0.00030136,2]
[319580243,1710881449803,-500.0,0.00030136,2]
[319580244,1710881449812,-500.0,0.00030136,2]
[319580245,1710881449822,-500.0,0.00030136,2]
[319580246,1710881449831,-500.0,0.00030136,2]
[319580247,1710881449842,-523.92,0.00030136,2]
[319580248,1710881449852,-151.0,0.00030136,7]
[319580249,1710881449861,-151.0,0.00030136,7]
[319580250,1710881449871,-151.0,0.00030136,7]
[319580251,1710881449880,-2734.71,0.00030136,2]
[319580252,1710881449889,-151.0,0.00030136,7]
[319580253,1710881449898,-500.0,0.00030136,2]
[319580254,1710881449908,-151.0,0.00030136,7]
[319580255,1710881449918,-151.0,0.00030136,7]
[319580256,1710881449928,-500.0,0.00030136,2]
[319580257,1710881449937,-500.0,0.00030136,2]
[319580258,1710881449947,-3047.5,0.00030136,2]
[319580259,1710881449956,-629.16,0.00030136,2]
[319580260,1710881449966,-500.0,0.00030136,2]
[319580261,1710881449975,-500.0,0.00030136,2]
[319580262,1710881449985,-500.0,0.00030136,2]
[319580263,1710881449995,-500.0,0.00030136,2]
[319580264,1710881450004,-500.0,0.00030136,2]
[319580265,1710881450013,-500.0,0.00030136,2]
[319580266,1710881450023,-1543.77,0.00030136,2]
[319580267,1710881450033,-320.17177,0.00030136,7]
[319580268,1710881450042,-320.17177,0.00030136,7]
[319580269,1710881450052,-320.17177,0.00030136,7]
[319580270,1710881450061,-500.0,0.00030136,2]
[319580271,1710881450071,-320.17177,0.00030136,7]
[319580272,1710881450081,-320.17177,0.00030136,7]
[319580273,1710881450090,-500.0,0.00030136,2]
[319580274,1710881450099,-320.17177,0.00030136,7]
[319580275,1710881450109,-4102.02,0.00030136,2]
[319580276,1710881450118,-2756.38,0.00030136,2]
[319580277,1710881450128,-301.16500429,0.00030136,2]
[319580278,1710881450139,-320.17177,0.00030136,7]
[319580279,1710881450149,-320.17177,0.00030136,7]
[319580280,1710881450158,-500.0,0.00030136,2]
[319580281,1710881450167,-320.17177,0.00030136,7]
[319580282,1710881450178,-320.17177,0.00030136,7]
[319580283,1710881450187,-500.0,0.00030136,2]
[319580284,1710881450196,-320.17177,0.00030136,7]
[319580285,1710881450205,-320.17177,0.00030136,7]
[319580286,1710881450215,-500.0,0.00030136,2]
[319580287,1710881450224,-1359.55,0.00030136,2]
[319580288,1710881450234,-500.0,0.00030136,2]
[319580289,1710881450243,-833.52,0.00030136,2]
[319580290,1710881450252,-2645.05,0.00030136,2]
[319580291,1710881450261,-2234.11,0.00030136,2]
[319580292,1710881450271,-199.52539551,0.00030136,2]
[319580293,1710881450280,-500.0,0.00030136,2]
[319580294,1710881450289,-500.0,0.00030136,2]
[319580295,1710881450298,-500.0,0.00030136,2]
[319580296,1710881450308,-2469.96,0.00030136,2]
[319580297,1710881450317,-2373.76,0.00030136,2]
[319580298,1710881450326,-500.0,0.00030136,2]
[319580299,1710881450335,-500.0,0.00030136,2]
[319580300,1710881450344,-505.95,0.00030136,2]
[319580301,1710881450353,-1038.15,0.00030136,2]
[319580302,1710881450363,-500.0,0.00030136,2]
[319580303,1710881450372,-500.0,0.00030136,2]
[319580304,1710881450381,-292.743557,0.00030136,7]
[319580305,1710881450391,-2426.03,0.00030136,2]
[319580306,1710881450400,-502.23,0.00030136,2]
[319580307,1710881450410,-151.0,0.00030136,7]
[319580308,1710881450420,-151.0,0.00030136,7]